fUST/lending_fUST_20250129
["ID","MTS","AMOUNT","RATE_DAILY","PERIOD"]
[350841834,1738155732087,208.68654987,0.0001,2]
[350841839,1738155879551,244.870111,0.00013973,2]
[350842063,1738156238607,-250.0,0.00015447,2]
[350842065,1738156238616,-600.0,0.0001556,2]
[350842067,1738156238626,-153.415,0.0001587,2]
[350842069,1738156238635,-160.423,0.00015925,2]
[350842071,1738156238645,-198.50208948,0.0001615,2]
[350842073,1738156238655,-404.13517671,0.0001615,2]
[350842075,1738156238665,-300.0,0.00016199,2]
[350842077,1738156238675,-151.0,0.000162,2]
[350842079,1738156238684,-151.0,0.000162,2]
[350842081,1738156238694,-151.0,0.000162,2]
[350842083,1738156238704,-151.0,0.000162,2]
[350842086,1738156238714,-151.0,0.000162,2]
[350842088,1738156238723,-151.0,0.000162,2]
[350842090,1738156238733,-151.0,0.000162,2]
[350842092,1738156238743,-151.0,0.000162,2]
[350842094,1738156238753,-151.0,0.000162,2]
[350842096,1738156238763,-151.0,0.000162,2]
[350842098,1738156238772,-151.0,0.000162,2]
[350842100,1738156238782,-151.0,0.000162,2]
[350842102,1738156238791,-151.0,0.000162,2]
[350842104,1738156238801,-151.0,0.000162,2]
[350842106,1738156238812,-151.0,0.000162,2]
[350842108,1738156238822,-500.0,0.00016249,2]
[350842110,1738156238832,-500.0,0.00016249,2]
[350842112,1738156238844,-500.0,0.00016249,2]
[350842114,1738156238853,-500.0,0.00016249,2]
[350842116,1738156238863,-500.0,0.00016249,2]
[350842119,1738156238873,-298.93515625,0.00016249,2]
[350842121,1738156238882,-84.0452398,0.00016249,2]
[350842123,1738156238894,-415.9547602,0.00016249,2]
[350842125,1738156238903,-500.0,0.00016249,2]
[350842127,1738156238912,-500.0,0.00016249,2]
[350842129,1738156238922,-500.0,0.00016249,2]
[350842131,1738156238931,-500.0,0.00016249,2]
[350842133,1738156238940,-500.0,0.00016249,2]
[350842135,1738156238950,-500.0,0.00016249,2]
[350842137,1738156238960,-500.0,0.00016249,2]
[350842139,1738156238969,-500.0,0.00016249,2]
[350842141,1738156238979,-500.0,0.00016249,2]
[350842143,1738156238989,-500.0,0.00016249,2]
[350842145,1738156238998,-500.0,0.00016249,2]
[350842147,1738156239007,-500.0,0.00016249,2]
[350842149,1738156239017,-500.0,0.00016249,2]
[350842151,1738156239029,-500.0,0.00016249,2]
[350842153,1738156239038,-500.0,0.00016249,2]
[350842155,1738156239047,-500.0,0.00016249,2]
[350842157,1738156239058,-500.0,0.00016249,2]
[350842159,1738156239067,-213.08198623,0.00016249,2]
[350842161,1738156239077,-500.0,0.00016249,2]
[350842163,1738156239086,-500.0,0.00016249,2]
[350842165,1738156239096,-6541.4341288,0.0001625,15]
[350842167,1738156239107,-444.54206958,0.0001625,15]
[350842170,1738156239118,-8915.1914108,0.0001625,15]
[350842172,1738156239129,-306.62,0.0001625,15]
[350842319,1738156240641,-73145.480289,0.0001625,15]
[350842321,1738156240652,-102000.0,0.0001625,15]
[350842486,1738156400692,331.92,0.00010959,2]
[350842487,1738156401984,-700.0,0.0001556,2]
[350842488,1738156402013,-152.967,0.0001562,2]
[350842489,1738156402043,-1796.01172821,0.00015926,2]
[350842490,1738156402072,-2966.40657327,0.0001615,2]
[350842491,1738156402100,-234384.61469852,0.0001615,2]
[350842492,1738156411241,276.6,0.00010959,2]
[350842493,1738156421832,230.5,0.00010959,2]
[350842494,1738156432490,192.09,0.00010959,2]
[350842495,1738156443110,160.07,0.00010959,2]
[350842496,1738156453704,800.38,0.00010959,2]
[350842497,1738156620075,24900.0,0.00015077,2]
[350842498,1738156744406,249.024724,0.00013973,2]
[350842502,1738157014494,1820.5146361,0.00015058,2]
[350842521,1738157389561,-302.62,0.00021549,120]
[350842522,1738157389705,-302.62,0.00021549,120]
[350842523,1738157389738,-2015.15996068,0.00021549,120]
[350842524,1738157389749,-61.82007864,0.00022,120]
[350842576,1738157432859,-250.0,0.00015225,2]
[350842578,1738157432868,-205.8050926,0.00015262,2]
[350842580,1738157432877,-197.12404026,0.0001546,2]
[350842582,1738157432886,-600.0,0.0001556,2]
[350842584,1738157432898,-152.863,0.0001562,2]
[350842586,1738157432908,-174.939,0.00015925,2]
[350842588,1738157432917,-158.75486675,0.00016,2]
[350842590,1738157432927,-300.0,0.00016029,2]
[350842592,1738157432936,-10938.46183397,0.0001603,2]
[350842594,1738157432945,-47864.86346012,0.0001615,2]
[350842596,1738157432956,-642.62244259,0.0001615,2]
[350842599,1738157432967,-609.44461093,0.0001615,2]
[350842601,1738157432983,-4482.55877684,0.0001615,2]
[350842603,1738157432992,-494.30773217,0.0001615,2]
[350842605,1738157433002,-191.71173116,0.0001615,2]
[350842607,1738157433011,-152.0,0.00016246,2]
[350842609,1738157433021,-387.24962855,0.00016249,2]
[350842611,1738157433031,-3342.32668194,0.0001625,15]
[350842616,1738157433042,-310.04,0.0001625,15]
[350842625,1738157433097,-4799.03558,0.0001625,15]
[350842628,1738157433113,-5579.66924897,0.0001625,15]
[350842672,1738157438685,-21874.6340862,0.0001625,15]
[350842732,1738157446751,-1845.26387009,0.0001625,15]
[350842735,1738157577500,-188.17992136,0.00022,120]
[350842736,1738157577528,-114.44007864,0.00022036,120]
[350842737,1738157577661,-45.55992136,0.00022036,120]
[350842738,1738157577686,-302.62,0.0002213,120]
[350842739,1738157577712,-250.0,0.000224,120]
[350842740,1738157628546,5212.33630231,0.00022566,120]
[350842741,1738157655747,244.837529,0.00013973,2]
[350842742,1738157771795,728.49,0.00022566,120]
[350842746,1738158354341,2000.0,0.00022,120]
[350842747,1738158476213,240.859694,0.00013973,2]
[350842794,1738158632120,-250.0,0.00015159,2]
[350842796,1738158632130,-600.0,0.0001556,2]
[350842798,1738158632142,-174.939,0.00015925,2]
[350842800,1738158632152,-2000.0,0.000161,2]
[350842802,1738158632161,-2000.0,0.000161,3]
[350842804,1738158632170,-300.0,0.00016149,2]
[350842806,1738158632179,-432.51926564,0.0001615,2]
[350842808,1738158632189,-401.54173436,0.000162,4]
[350842810,1738158632203,-1598.45826564,0.000162,4]
[350842812,1738158632212,-2000.0,0.000162,5]
[350842814,1738158632222,-47.69712343,0.000162,6]
[350843134,1738158640180,-1368.53287657,0.000162,6]
[350843136,1738158640190,-151.0,0.00016248,2]
[350843138,1738158640204,-89332.58699976,0.0001625,15]
[350843140,1738158640215,-136284.94513317,0.0001625,15]
[350843143,1738158640232,-1513.64074368,0.0001625,15]
[350843448,1738158643078,-2450.45018278,0.0001625,15]
[350843450,1738158643090,-277.029,0.0001625,15]
[350843456,1738158643136,-1504.95,0.0001625,15]
[350843736,1738158645919,-10265.90853439,0.0001625,15]
[350843744,1738158645981,-10812.66813009,0.0001625,15]
[350843746,1738158645993,-3823.04491963,0.0001625,15]
[350846155,1738159036767,676.88,0.000151,2]
[350846156,1738159310732,228.816709,0.00013973,2]
[350846157,1738159534978,2592.4520126,0.00014949,2]
[350846207,1738159832399,-250.0,0.00015301,2]
[350846208,1738159832408,-300.0,0.00015559,2]
[350846209,1738159832418,-3199.74401256,0.0001556,15]
[350846251,1738159838131,-7857.39598744,0.0001556,15]
[350846253,1738159838141,-600.0,0.0001556,2]
[350846255,1738159838151,-174.93902331,0.00015925,2]
[350846257,1738159838160,-378.45435747,0.0001615,2]
[350846259,1738159838169,-8870.91063157,0.0001625,15]
[350846261,1738159838181,-713.55829975,0.0001625,15]
[350846268,1738159838231,-278.00481043,0.0001625,15]
[350846270,1738159838243,-7545.82880225,0.0001625,15]
[350846460,1738159840213,-2038.05364534,0.0001625,15]
[350846463,1738159840235,-58037.417009,0.0001625,15]
[350846465,1738159840250,-18285.0,0.0001625,15]
[350846468,1738159840264,-23676.04842095,0.0001625,15]
[350846470,1738159840276,-3003.9,0.0001625,15]
[350846473,1738159840294,-322.0,0.0001625,15]
[350846773,1738159843058,-11322.12823685,0.0001625,15]
[350846776,1738159843075,-520.25,0.0001625,15]
[350846794,1738159843237,-16135.18230044,0.0001625,15]
[350846796,1738159843249,-1000.0,0.0001625,15]
[350846799,1738159843267,-501.23999994,0.0001625,15]
[350846801,1738159843278,-5775.5231536,0.0001625,15]
[350849232,1738160238731,225.639915,0.00013973,2]
[350851935,1738160652157,287.273098,0.0001516,2]
[350851937,1738160660048,574.546196,0.0001516,2]
[350853082,1738160760715,-197.8148158,0.00015308,2]
[350853083,1738160760741,-300.0,0.00015559,2]
[350853084,1738160760770,-46160.39,0.0001556,15]
[350853085,1738160760794,-600.0,0.0001556,2]
[350853086,1738160760819,-154.3518878,0.00016,2]
[350853088,1738160761013,-2669.76591597,0.0001615,2]
[350853089,1738160761038,-501.31428585,0.0001624,2]
[350853090,1738160761066,-69416.36309458,0.0001625,15]
[350853125,1738161032432,-178.011722,0.00015283,2]
[350853127,1738161032443,-600.0,0.0001556,2]
[350853129,1738161032452,-157.03237634,0.0001615,2]
[350853136,1738161032511,-1643.71114581,0.0001615,2]
[350853139,1738161032533,-3199.25647785,0.0001615,2]
[350853141,1738161032544,-5000.0,0.0001615,2]
[350853143,1738161032554,-2515.04,0.0001615,2]
[350853145,1738161032563,-40933.15803342,0.0001625,15]
[350853147,1738161032575,-353048.78505784,0.0001625,15]
[350853149,1738161032587,-21127.3426907,0.0001625,15]
[350853152,1738161032604,-137338.94978181,0.0001625,15]
[350853154,1738161032615,-6408.21750057,0.0001625,15]
[350853267,1738161038477,-331.14756276,0.00016173,2]
[350853268,1738161038487,-5553.7926439,0.0001625,15]
[350853269,1738161038499,-1303.77948521,0.0001625,15]
[350853270,1738161038511,-2859.82278748,0.0001625,15]
[350853328,1738161046353,-863.92784516,0.00016173,2]
[350853329,1738161046362,-75.94636927,0.0001625,15]
[350854461,1738161140946,233.567486,0.00013973,2]
[350854462,1738161345156,200.0,0.00022,120]
[350854463,1738161374127,200.0,0.000224,120]
[350854464,1738161415894,200.0,0.000224,120]
[350854466,1738162053845,909.06941382,0.0001516,2]
[350854502,1738162232848,-178.011722,0.0001529,2]
[350854504,1738162232859,-250.0,0.00015335,2]
[350854505,1738162232869,-481.05769182,0.0001556,2]
[350854506,1738162232881,-118.94230818,0.0001556,2]
[350854507,1738162232890,-175.81566324,0.000162,2]
[350854508,1738162232900,-289.75411745,0.000162,2]
[350854509,1738162232910,-152.50637712,0.00016232,2]
[350854510,1738162232920,-300.0,0.00016248,2]
[350854511,1738162232930,-500.0,0.00016249,2]
[350854512,1738162232939,-500.0,0.00016249,2]
[350854513,1738162232949,-500.0,0.00016249,2]
[350854514,1738162232959,-500.0,0.00016249,2]
[350854515,1738162232968,-500.0,0.00016249,2]
[350854516,1738162232978,-500.0,0.00016249,2]
[350854517,1738162232987,-227.91835044,0.00016249,2]
[350854518,1738162232996,-500.0,0.00016249,2]
[350854519,1738162233005,-500.0,0.00016249,2]
[350854520,1738162233015,-65776.61161983,0.0001625,15]
[350854521,1738162233026,-1389.45236845,0.0001625,15]
[350854594,1738162238728,-710.10785547,0.0001625,15]
[350854597,1738162238740,-612.46597482,0.0001625,15]
[350854807,1738162240772,-32545.52076797,0.0001625,15]
[350855074,1738162243491,-564.15783932,0.0001625,15]
[350855084,1738162243578,-219589.10228587,0.0001625,15]
[350855361,1738162246478,-11658.58588488,0.0001625,15]
[350859536,1738162374729,238.417194,0.00013973,2]
[350859537,1738162418333,600.0,0.00014568,2]
[350859540,1738163268088,250.823469,0.00013973,2]
[350859594,1738163433030,-281.173233,0.000159,2]
[350859596,1738163433041,-218.826767,0.00015938,2]
[350859599,1738163433054,-381.173233,0.00015938,2]
[350859601,1738163433064,-300.0,0.00016099,2]
[350859603,1738163433075,-25489.43,0.000161,3]
[350859605,1738163433085,-565.84579855,0.000161,2]
[350859607,1738163433098,-8710.887022,0.000161,2]
[350859609,1738163433107,-500.0,0.00016199,2]
[350859611,1738163433118,-349.84602988,0.00016199,2]
[350859613,1738163433128,-500.0,0.00016199,2]
[350859615,1738163433138,-500.0,0.00016199,2]
[350859617,1738163433148,-250.78310979,0.00016199,2]
[350859619,1738163433159,-500.0,0.00016199,2]
[350859621,1738163433169,-1489.36432911,0.000162,2]
[350859623,1738163433179,-40000.0,0.000162,2]
[350859625,1738163433190,-693.07023294,0.000162,2]
[350859627,1738163433200,-150.22145955,0.0001624,2]
[350859628,1738163433211,-31108.11821314,0.0001625,15]
[350860024,1738163438964,-9465.54902022,0.0001625,15]
[350860094,1738163441186,-395.0,0.00016212,2]
[350860096,1738163441197,-99003.4681,0.0001625,15]
[350860183,1738163443703,-500.0,0.0001625,15]
[350860199,1738163486033,-968733.03234866,0.0001625,15]
[350860201,1738163511680,500.0,0.00014568,2]
[350860202,1738163536191,190.617228,0.00013699,2]
[350860203,1738163734558,600.0,0.00014568,2]
[350860204,1738163863994,1178.2029076,0.0001516,2]
[350860205,1738164134256,258.699994,0.00013973,2]
[350860206,1738164204277,4212.0,0.000225,120]
[350860208,1738164305765,196.0687823,0.00014832,2]
[350860219,1738164522386,1408.91283471,0.00013,2]
[350860220,1738164526579,14201.3741649,0.00014946,2]
[350860224,1738164560173,10036.80794326,0.00022566,120]
[350860226,1738164572813,540.291974,0.00014791,2]
[350860252,1738164632111,-260.6285322,0.00015326,2]
[350860253,1738164632121,-251.31952661,0.00015365,2]
[350860255,1738164632131,-151.0,0.00015365,2]
[350860257,1738164632140,-300.0,0.00015374,2]
[350860259,1738164632151,-388.69034814,0.00015375,2]
[350860261,1738164632316,-24511.30965186,0.00015375,2]
[350860262,1738164632326,-152.0,0.00015834,2]
[350860263,1738164632336,-343.26234773,0.00015838,2]
[350860264,1738164632345,-600.0,0.00015938,2]
[350860265,1738164632355,-12592.90299927,0.00015955,2]
[350860266,1738164632364,-4549.5167573,0.00016,2]
[350860267,1738164632373,-3527.50139272,0.00016,2]
[350860268,1738164632383,-310.7627312,0.00016086,2]
[350860269,1738164632392,-188.0,0.00016191,2]
[350860270,1738164632401,-151.0,0.00016248,2]
[350860271,1738164632411,-155.859345,0.00016298,5]
[350860272,1738164632421,-306.0,0.000163,2]
[350860273,1738164632430,-399.6089955,0.000163,2]
[350860274,1738164632440,-153.5547867,0.000163,2]
[350860275,1738164632449,-279.699047,0.000163,2]
[350860276,1738164632458,-154.3518878,0.000163,2]
[350860277,1738164632467,-351.9411313,0.000163,2]
[350860278,1738164632476,-215.4944753,0.000163,2]
[350860279,1738164632485,-154.3518878,0.000163,2]
[350860280,1738164632495,-215.4944753,0.000163,2]
[350860281,1738164632504,-215.2006226,0.000163,2]
[350860282,1738164632513,-621.0,0.000163,2]
[350860283,1738164632523,-354.0685108,0.000163,2]
[350860284,1738164632532,-310.293085,0.000163,2]
[350860285,1738164632542,-774.40496177,0.0001632,2]
[350860286,1738164632552,-363.67040464,0.00016331,2]
[350860287,1738164632561,-363.67040464,0.00016333,2]
[350860288,1738164632571,-363.67040464,0.00016335,2]
[350860289,1738164632581,-363.67040464,0.00016336,2]
[350860290,1738164632593,-363.67040464,0.00016338,2]
[350860291,1738164632603,-3000.0,0.000164,2]
[350860292,1738164632613,-3000.0,0.0001641,2]
[350860293,1738164632622,-3000.0,0.0001642,2]
[350860294,1738164632632,-3000.0,0.0001643,2]
[350860295,1738164632641,-641.61998548,0.00016437,2]
[350860296,1738164632651,-292.70857661,0.00016437,2]
[350860297,1738164632662,-180.94482016,0.00016437,2]
[350860298,1738164632672,-500.0,0.00016437,2]
[350860299,1738164632682,-151.0,0.00016438,2]
[350860300,1738164632692,-151.0,0.00016438,2]
[350860301,1738164632702,-151.0,0.00016438,2]
[350860302,1738164632711,-151.0,0.00016438,2]
[350860303,1738164632721,-151.0,0.00016438,2]
[350860304,1738164632731,-152.877224,0.00016438,2]
[350860305,1738164632740,-500.0,0.00016438,2]
[350860306,1738164632750,-506.48019941,0.00016438,2]
[350860307,1738164632760,-158.37773266,0.00016438,2]
[350860308,1738164632770,-500.0,0.00016438,2]
[350860309,1738164632779,-500.0,0.00016438,2]
[350860310,1738164632789,-500.0,0.00016438,2]
[350860311,1738164632799,-500.0,0.00016438,2]
[350860312,1738164632808,-500.0,0.00016438,2]
[350860313,1738164632817,-448.64043394,0.00016438,2]
[350860357,1738164638208,-218.69694389,0.000162,2]
[350860359,1738164638218,-218.69694387,0.00016269,2]
[350860361,1738164638227,-283.93967085,0.00016428,2]
[350861136,1738164697983,500.0,0.00014568,2]
[350861137,1738164897873,10000.0,0.00018002,30]
[350861138,1738164952888,245.764994,0.00013973,2]
[350861141,1738165187472,500.0,0.00014568,2]
[350861142,1738165336379,500.0,0.00014568,2]
[350861143,1738165650622,860.73034867,0.0001516,2]
[350861144,1738165659604,2160.45483974,0.00015101,2]
[350861145,1738165720541,500.9064344,0.00015101,2]
[350861200,1738165832379,-1443.01666517,0.0001516,2]
[350861203,1738165832388,-162.9583858,0.00015286,2]
[350861206,1738165832397,-270.145987,0.00015347,2]
[350861208,1738165832407,-500.0,0.00015938,2]
[350861210,1738165832416,-300.0,0.00016213,2]
[350861212,1738165832425,-12592.90299928,0.00016214,2]
[350861214,1738165832435,-155.3813656,0.00016273,2]
[350861217,1738165832444,-713.20041915,0.00016333,2]
[350861220,1738165832453,-928.321405,0.00016338,2]
[350861223,1738165832463,-1465.98264648,0.00016338,2]
[350861226,1738165832472,-154.3180228,0.000164,2]
[350861229,1738165832481,-150.802,0.00016425,2]
[350861232,1738165832491,-540.493,0.00016425,2]
[350861235,1738165832504,-2044.522,0.00016425,2]
[350861237,1738165832514,-2303.0,0.00016425,2]
[350861240,1738165832523,-500.0,0.00016431,2]
[350861243,1738165832532,-500.0,0.00016431,2]
[350861245,1738165832541,-500.0,0.00016431,2]
[350861248,1738165832551,-500.0,0.00016431,2]
[350861251,1738165832560,-500.0,0.00016431,2]
[350861253,1738165832570,-500.0,0.00016431,2]
[350861256,1738165832580,-500.0,0.00016431,2]
[350861259,1738165832590,-500.0,0.00016431,2]
[350861261,1738165832601,-500.0,0.00016431,2]
[350861263,1738165832610,-500.0,0.00016431,2]
[350861266,1738165832620,-500.0,0.00016431,2]
[350861268,1738165832629,-500.0,0.00016431,2]
[350861271,1738165832638,-500.0,0.00016431,2]
[350861274,1738165832648,-500.0,0.00016431,2]
[350861277,1738165832657,-500.0,0.00016431,2]
[350861281,1738165832667,-500.0,0.00016431,2]
[350861283,1738165832676,-500.0,0.00016431,2]
[350861286,1738165832684,-500.0,0.00016431,2]
[350861289,1738165832693,-500.0,0.00016431,2]
[350861291,1738165832703,-500.0,0.00016431,2]
[350861293,1738165832712,-500.0,0.00016431,2]
[350861295,1738165832721,-500.0,0.00016431,2]
[350861296,1738165832731,-500.0,0.00016431,2]
[350861298,1738165832741,-500.0,0.00016431,2]
[350861300,1738165832750,-500.0,0.00016431,2]
[350861301,1738165832760,-500.0,0.00016431,2]
[350861303,1738165832770,-500.0,0.00016431,2]
[350861304,1738165832780,-500.0,0.00016431,2]
[350861306,1738165832789,-500.0,0.00016431,2]
[350861307,1738165832799,-319.42367156,0.00016431,2]
[350861309,1738165832808,-500.0,0.00016431,2]
[350861310,1738165832817,-500.0,0.00016431,2]
[350861313,1738165832826,-500.0,0.00016437,2]
[350861315,1738165832836,-500.96109735,0.00016438,2]
[350861317,1738165832845,-636.89698287,0.00016438,2]
[350861320,1738165832854,-165.69414343,0.00016438,2]
[350861321,1738165832863,-184.65954905,0.00016438,2]
[350861323,1738165832875,-151.0,0.00016438,2]
[350861324,1738165832885,-504.5813433,0.00016438,2]
[350861325,1738165832894,-151.0,0.00016438,2]
[350861326,1738165832903,-225.507168,0.00016438,2]
[350861327,1738165832912,-507.8524113,0.00016438,2]
[350861328,1738165832921,-500.0,0.00016438,2]
[350861329,1738165832931,-500.0,0.00016438,2]
[350861330,1738165832940,-500.0,0.00016438,2]
[350861331,1738165832949,-500.0,0.00016438,2]
[350861332,1738165832958,-500.0,0.00016438,2]
[350861333,1738165832968,-500.0,0.00016438,2]
[350861334,1738165832977,-500.0,0.00016438,2]
[350861335,1738165832987,-500.0,0.00016438,2]
[350861336,1738165832996,-500.0,0.00016438,2]
[350861337,1738165833005,-500.0,0.00016438,2]
[350861338,1738165833014,-500.0,0.00016438,2]
[350861339,1738165833024,-500.0,0.00016438,2]
[350861340,1738165833034,-500.0,0.00016438,2]
[350861341,1738165833044,-500.0,0.00016438,2]
[350861342,1738165833054,-500.0,0.00016438,2]
[350861343,1738165833064,-604.93716432,0.00016438,2]
[350861344,1738165833073,-151.0,0.00016438,2]
[350861345,1738165833083,-510.41015913,0.00016438,2]
[350861346,1738165833093,-549.6245073,0.00016438,2]
[350861347,1738165833103,-500.0,0.00016438,2]
[350861348,1738165833113,-500.0,0.00016438,2]
[350861349,1738165833124,-500.0,0.00016438,2]
[350861350,1738165833133,-500.0,0.00016438,2]
[350861351,1738165833143,-500.0,0.00016438,2]
[350861352,1738165833153,-500.0,0.00016438,2]
[350861353,1738165833163,-500.0,0.00016438,2]
[350861354,1738165833173,-500.56772312,0.00016438,2]
[350861355,1738165833183,-500.0,0.00016438,2]
[350861356,1738165833193,-500.0,0.00016438,2]
[350861357,1738165833202,-500.0,0.00016438,2]
[350861358,1738165833211,-500.0,0.00016438,2]
[350861359,1738165833221,-504.5115558,0.00016438,2]
[350861360,1738165833231,-151.0,0.00016438,2]
[350861361,1738165833240,-500.0,0.00016438,2]
[350861362,1738165833250,-519.09809983,0.00016438,2]
[350861363,1738165833259,-211.4670592,0.00016438,2]
[350861364,1738165833268,-500.0,0.00016438,2]
[350861365,1738165833278,-500.0,0.00016438,2]
[350861366,1738165833288,-500.0,0.00016438,2]
[350861367,1738165833297,-500.0,0.00016438,2]
[350861368,1738165833307,-613.55062501,0.00016438,2]
[350861369,1738165833316,-500.0,0.00016438,2]
[350861370,1738165833326,-502.68308185,0.00016438,2]
[350861371,1738165833335,-500.0,0.00016438,2]
[350861372,1738165833344,-503.11645484,0.00016438,2]
[350861373,1738165833354,-500.0,0.00016438,2]
[350861374,1738165833363,-500.0,0.00016438,2]
[350861375,1738165833374,-500.0,0.00016438,2]
[350861376,1738165833384,-500.0,0.00016438,2]
[350861377,1738165833393,-500.0,0.00016438,2]
[350861378,1738165833403,-500.0,0.00016438,2]
[350861379,1738165833412,-500.0,0.00016438,2]
[350861380,1738165833422,-500.0,0.00016438,2]
[350861381,1738165833431,-500.0,0.00016438,2]
[350861382,1738165833440,-500.0,0.00016438,2]
[350861383,1738165833450,-504.90940258,0.00016438,2]
[350861384,1738165833459,-500.0,0.00016438,2]
[350861385,1738165833469,-502.29559301,0.00016438,2]
[350861386,1738165833478,-500.0,0.00016438,2]
[350861387,1738165833487,-376.59790935,0.00016438,2]
[350861388,1738165833500,-530.1,0.00016438,2]
[350861389,1738165833509,-151.0,0.00016438,2]
[350861390,1738165833519,-173.055471,0.00016438,2]
[350861391,1738165833528,-500.0,0.00016438,2]
[350861392,1738165833538,-260.49546916,0.00016438,2]
[350861393,1738165833547,-500.0,0.00016438,2]
[350861394,1738165833557,-200.9,0.00016438,2]
[350861395,1738165833567,-500.0,0.00016438,2]
[350861396,1738165833576,-500.0,0.00016438,2]
[350861397,1738165833586,-500.0,0.00016438,2]
[350861398,1738165833595,-500.0,0.00016438,2]
[350861399,1738165833605,-500.0,0.00016438,2]
[350861400,1738165833615,-527.75887113,0.00016438,2]
[350861401,1738165833625,-151.0,0.00016438,2]
[350861402,1738165833634,-151.0,0.00016438,2]
[350861403,1738165833644,-500.0,0.00016438,2]
[350861404,1738165833654,-500.0,0.00016438,2]
[350861405,1738165833664,-500.0,0.00016438,2]
[350861406,1738165833673,-500.0,0.00016438,2]
[350861407,1738165833683,-500.0,0.00016438,2]
[350861408,1738165833692,-500.0,0.00016438,2]
[350861409,1738165833702,-500.0,0.00016438,2]
[350861410,1738165833714,-563.06385797,0.00016438,2]
[350861411,1738165833723,-500.0,0.00016438,2]
[350861412,1738165833733,-501.98170416,0.00016438,14]
[350861413,1738165833743,-500.0,0.00016438,2]
[350861414,1738165833753,-151.0,0.00016438,2]
[350861415,1738165833763,-151.0,0.00016438,2]
[350861416,1738165833773,-500.0,0.00016438,2]
[350861417,1738165833783,-502.05532941,0.00016438,2]
[350861418,1738165833793,-500.0,0.00016438,2]
[350861419,1738165833803,-506.56217734,0.00016438,2]
[350861420,1738165833815,-500.0,0.00016438,2]
[350861421,1738165833826,-188.63795034,0.00016438,2]
[350861422,1738165834192,-311.36204966,0.00016438,2]
[350861423,1738165834202,-500.0,0.00016438,2]
[350861424,1738165834211,-500.0,0.00016438,2]
[350861425,1738165834220,-501.39644357,0.00016438,2]
[350861426,1738165834230,-500.0,0.00016438,2]
[350861427,1738165834240,-501.46701003,0.00016438,2]
[350861428,1738165834249,-501.47743387,0.00016438,2]
[350861429,1738165834259,-500.0,0.00016438,2]
[350861430,1738165834269,-500.0,0.00016438,2]
[350861431,1738165834279,-500.0,0.00016438,2]
[350861432,1738165834289,-500.0,0.00016438,2]
[350861433,1738165834300,-500.0,0.00016438,2]
[350861434,1738165834309,-500.0,0.00016438,2]
[350861435,1738165834318,-500.0,0.00016438,2]
[350861436,1738165834327,-500.0,0.00016438,2]
[350861437,1738165834337,-500.0,0.00016438,2]
[350861438,1738165834346,-500.0,0.00016438,2]
[350861439,1738165834355,-500.0,0.00016438,2]
[350861440,1738165834365,-502.69906869,0.00016438,2]
[350861441,1738165834377,-501.00205967,0.00016438,2]
[350861442,1738165834386,-500.0,0.00016438,2]
[350861443,1738165834395,-500.0,0.00016438,2]
[350861444,1738165834404,-500.0,0.00016438,2]
[350861445,1738165834414,-500.0,0.00016438,2]
[350861446,1738165834423,-500.0,0.00016438,2]
[350861447,1738165834432,-502.10822943,0.00016438,2]
[350861448,1738165834441,-151.0,0.00016438,2]